fUST/lending_fUST_20250619
["ID","MTS","AMOUNT","RATE_DAILY","PERIOD"]
[366470648,1750275044462,-460.0,0.00022191,6]
[366470649,1750275044471,-460.0,0.00022191,6]
[366470650,1750275044480,-460.0,0.00022191,6]
[366470651,1750275044490,-460.0,0.00022191,6]
[366470652,1750275044499,-460.0,0.00022191,6]
[366470653,1750275044509,-460.0,0.00022191,6]
[366470654,1750275044518,-460.0,0.00022191,6]
[366470655,1750275044528,-460.0,0.00022191,6]
[366470656,1750275044537,-460.0,0.00022191,6]
[366470657,1750275044546,-460.0,0.00022191,6]
[366470658,1750275044555,-834.86,0.00022191,6]
[366470659,1750275044565,-507.72,0.00022191,6]
[366470660,1750275044575,-4405.44,0.00022191,6]
[366470661,1750275044584,-522.16,0.00022191,6]
[366470662,1750275044594,-460.0,0.00022191,6]
[366470663,1750275044603,-1094.82,0.00022191,6]
[366470664,1750275044614,-460.0,0.00022191,6]
[366470665,1750275044626,-460.0,0.00022191,6]
[366470666,1750275044636,-2244.49,0.00022191,6]
[366470667,1750275044646,-460.0,0.00022191,6]
[366470668,1750275044656,-460.0,0.00022191,6]
[366470669,1750275044665,-628.28,0.00022191,6]
[366470670,1750275044674,-460.0,0.00022191,6]
[366470671,1750275044683,-460.0,0.00022191,6]
[366470672,1750275044694,-442.75792014,0.00022191,6]
[366470673,1750275044703,-460.0,0.00022191,6]
[366470674,1750275044713,-460.0,0.00022191,6]
[366470675,1750275044723,-460.0,0.00022191,6]
[366470676,1750275044734,-460.0,0.00022191,6]
[366470677,1750275044743,-170.34493833,0.00022191,6]
[366470678,1750275044752,-460.0,0.00022191,6]
[366470679,1750275044762,-460.0,0.00022191,6]
[366470680,1750275044771,-460.0,0.00022191,6]
[366470681,1750275044780,-72389.34,0.000222,7]
[366470682,1750275044789,-12542.39314967,0.000222,7]
[366470683,1750275044799,-168.0,0.00022201,2]
[366470684,1750275044808,-606.44206613,0.00022314,7]
[366470685,1750275044818,-606.44206613,0.00022452,7]
[366470686,1750275044827,-241.15,0.00022465,6]
[366470687,1750275044837,-460.0,0.00022465,6]
[366470688,1750275044846,-330.0,0.00022465,6]
[366470689,1750275044856,-460.0,0.00022465,6]
[366470690,1750275044865,-387.9,0.00022465,6]
[366470691,1750275044874,-460.0,0.00022465,2]
[366470692,1750275044885,-460.0,0.00022465,6]
[366470693,1750275044894,-460.0,0.00022465,6]
[366470694,1750275044903,-460.0,0.00022465,6]
[366470695,1750275044912,-460.0,0.00022465,6]
[366470696,1750275044921,-460.0,0.00022465,6]
[366470697,1750275044930,-460.0,0.00022465,6]
[366470698,1750275044940,-460.0,0.00022465,6]
[366470699,1750275044949,-460.0,0.00022465,6]
[366470700,1750275044958,-460.0,0.00022465,6]
[366470701,1750275044968,-1327.91,0.00022465,6]
[366470702,1750275044977,-2059.11,0.00022465,6]
[366470703,1750275044986,-460.0,0.00022465,6]
[366470704,1750275044995,-460.0,0.00022465,6]
[366470705,1750275045005,-460.0,0.00022465,6]
[366470706,1750275045019,-558.23,0.00022465,6]
[366470707,1750275045030,-460.0,0.00022465,6]
[366470708,1750275045039,-2489.45,0.00022465,6]
[366470709,1750275045048,-2535.43,0.00022465,6]
[366470710,1750275045058,-1287.29,0.00022465,6]
[366470711,1750275045067,-460.0,0.00022465,6]
[366470712,1750275045077,-460.0,0.00022465,6]
[366470713,1750275045087,-1697.43,0.00022465,6]
[366470714,1750275045098,-460.0,0.00022465,6]
[366470715,1750275045108,-460.0,0.00022465,6]
[366470716,1750275045119,-1073.53,0.00022465,6]
[366470717,1750275045128,-894.95,0.00022465,6]
[366470718,1750275045140,-803.74,0.00022465,6]
[366470719,1750275045150,-686.29,0.00022465,6]
[366470720,1750275045160,-460.0,0.00022465,6]
[366470721,1750275045170,-460.0,0.00022465,6]
[366470722,1750275045180,-460.0,0.00022465,6]
[366470723,1750275045190,-460.0,0.00022465,6]
[366470724,1750275045199,-460.0,0.00022465,6]
[366470725,1750275045208,-460.0,0.00022465,6]
[366470726,1750275045218,-460.0,0.00022465,6]
[366470727,1750275045227,-460.0,0.00022465,6]
[366470728,1750275045237,-460.0,0.00022465,6]
[366470729,1750275045247,-460.0,0.00022465,6]
[366470730,1750275045256,-460.0,0.00022465,6]
[366470731,1750275045266,-295.93064828,0.00022465,6]
[366470732,1750275045276,-460.0,0.00022465,6]
[366470733,1750275045285,-772.26,0.00022465,6]
[366470734,1750275045295,-460.0,0.00022465,6]
[366470735,1750275045305,-460.0,0.00022465,6]
[366470736,1750275045314,-460.0,0.00022465,6]
[366470737,1750275045325,-460.0,0.00022465,6]
[366470738,1750275045335,-1528.55,0.00022465,6]
[366470739,1750275045344,-982.57,0.00022465,6]
[366470740,1750275045354,-460.0,0.00022465,6]
[366470741,1750275045363,-460.0,0.00022465,6]
[366470742,1750275045372,-460.0,0.00022465,6]
[366470743,1750275045383,-671.45,0.00022465,6]
[366470744,1750275045393,-460.0,0.00022465,6]
[366470745,1750275045402,-460.0,0.00022465,6]
[366470746,1750275045411,-460.0,0.00022465,6]
[366470747,1750275045421,-460.0,0.00022465,6]
[366470748,1750275045431,-460.0,0.00022465,6]
[366470749,1750275045440,-460.0,0.00022465,6]
[366470750,1750275045449,-460.0,0.00022465,6]
[366470751,1750275045460,-460.0,0.00022465,6]
[366470752,1750275045470,-460.0,0.00022465,6]
[366470753,1750275045480,-460.0,0.00022465,6]
[366470754,1750275045489,-507.72,0.00022465,6]
[366470755,1750275045499,-834.86,0.00022465,6]
[366470756,1750275045508,-4405.44,0.00022465,6]
[366470757,1750275045518,-522.16,0.00022465,6]
[366470758,1750275045528,-460.0,0.00022465,6]
[366470759,1750275045538,-1094.82,0.00022465,6]
[366470760,1750275045548,-460.0,0.00022465,6]
[366470761,1750275045557,-460.0,0.00022465,6]
[366470762,1750275045566,-2244.49,0.00022465,6]
[366470763,1750275045575,-460.0,0.00022465,6]
[366470764,1750275045585,-460.0,0.00022465,6]
[366470765,1750275045594,-628.28,0.00022465,6]
[366470766,1750275045604,-460.0,0.00022465,6]
[366470767,1750275045614,-460.0,0.00022465,6]
[366470768,1750275045623,-460.0,0.00022465,6]
[366470769,1750275045633,-460.0,0.00022465,6]
[366470770,1750275045643,-460.0,0.00022465,6]
[366470771,1750275045652,-460.0,0.00022465,6]
[366470772,1750275045662,-290.0,0.00022465,6]
[366470773,1750275045672,-460.0,0.00022465,6]
[366470774,1750275045682,-168.0,0.00022501,2]
[366470775,1750275045691,-1002.72025445,0.00022521,2]
[366470776,1750275045701,-502.91797516,0.00022521,2]
[366470777,1750275045710,-1200.0,0.00022521,2]
[366470778,1750275045720,-500.0,0.00022521,2]
[366470779,1750275045729,-500.0,0.00022521,2]
[366470780,1750275045739,-1000.0,0.00022521,2]
[366470781,1750275045748,-505.82909745,0.00022521,2]
[366470782,1750275045758,-1000.0,0.00022521,2]
[366470783,1750275045767,-606.44206613,0.0002259,7]
[366470784,1750275045776,-5000.0,0.00022625,2]
[366470785,1750275045786,-500.0,0.00022625,2]
[366470786,1750275045796,-500.0,0.00022625,2]
[366470787,1750275045805,-500.0,0.00022625,2]
[366470788,1750275045814,-500.0,0.00022625,2]
[366470789,1750275045824,-500.0,0.00022625,2]
[366470790,1750275045833,-500.0,0.00022625,2]
[366470791,1750275045843,-500.0,0.00022625,2]
[366470792,1750275045853,-500.0,0.00022625,2]
[366470793,1750275045862,-500.0,0.00022625,2]
[366470794,1750275045871,-500.0,0.00022625,2]
[366470795,1750275045880,-500.0,0.00022625,2]
[366470796,1750275045891,-500.0,0.00022625,2]
[366470797,1750275045902,-500.0,0.00022625,2]
[366470798,1750275045911,-500.0,0.00022625,2]
[366470799,1750275045921,-500.0,0.00022625,2]
[366470800,1750275045930,-500.0,0.00022625,2]
[366470801,1750275045940,-500.0,0.00022625,2]
[366470802,1750275045949,-500.0,0.00022625,2]
[366470803,1750275045959,-500.0,0.00022625,2]
[366470804,1750275045968,-500.0,0.00022625,2]
[366470805,1750275045978,-500.0,0.00022625,2]
[366470806,1750275045987,-500.0,0.00022625,2]
[366470807,1750275045996,-500.0,0.00022625,2]
[366470808,1750275046005,-500.0,0.00022625,2]
[366470809,1750275046018,-500.0,0.00022625,2]
[366470810,1750275046028,-500.0,0.00022625,2]
[366470811,1750275046038,-500.0,0.00022625,2]
[366470812,1750275046047,-500.0,0.00022625,2]
[366470814,1750275046057,-500.0,0.00022625,2]
[366470815,1750275046067,-500.0,0.00022625,2]
[366470816,1750275046076,-17850.56488246,0.00022639,2]
[366470817,1750275046086,-1880.62,0.000227,7]
[366470818,1750275046095,-606.44206613,0.00022728,7]
[366470819,1750275046106,-460.0,0.00022739,6]
[366470821,1750275046116,-460.0,0.00022739,2]
[366470823,1750275046125,-460.0,0.00022739,6]
[366470824,1750275046136,-460.0,0.00022739,6]
[366470825,1750275046146,-460.0,0.00022739,6]
[366470826,1750275046155,-460.0,0.00022739,6]
[366470827,1750275046165,-360.43585024,0.00022739,6]
[366470829,1750275046175,-460.0,0.00022739,6]
[366470831,1750275046184,-460.0,0.00022739,6]
[366470832,1750275046194,-460.0,0.00022739,6]
[366470833,1750275046203,-427.55728256,0.00022739,6]
[366470834,1750275046213,-1327.91,0.00022739,6]
[366470836,1750275046223,-2059.11,0.00022739,6]
[366470838,1750275046232,-460.0,0.00022739,6]
[366470839,1750275046241,-558.23,0.00022739,6]
[366470840,1750275046251,-460.0,0.00022739,6]
[366470841,1750275046260,-2489.45,0.00022739,6]
[366470842,1750275046270,-2535.43,0.00022739,6]
[366470843,1750275046280,-1287.29,0.00022739,6]
[366470844,1750275046289,-460.0,0.00022739,6]
[366470845,1750275046298,-460.0,0.00022739,6]
[366470846,1750275046307,-1697.43,0.00022739,6]
[366470847,1750275046316,-460.0,0.00022739,6]
[366470848,1750275046325,-1073.53,0.00022739,6]
[366470849,1750275046335,-894.95,0.00022739,6]
[366470850,1750275046344,-803.74,0.00022739,6]
[366470851,1750275046355,-686.29,0.00022739,6]
[366470852,1750275046365,-460.0,0.00022739,6]
[366470853,1750275046374,-460.0,0.00022739,6]
[366470854,1750275046384,-460.0,0.00022739,6]
[366470856,1750275046394,-460.0,0.00022739,6]
[366470858,1750275046404,-460.0,0.00022739,6]
[366470859,1750275046414,-460.0,0.00022739,6]
[366470860,1750275046423,-460.0,0.00022739,6]
[366470861,1750275046462,-601.22,0.00022739,6]
[366470862,1750275046472,-772.26,0.00022739,6]
[366470863,1750275046482,-460.0,0.00022739,6]
[366470864,1750275046491,-460.0,0.00022739,6]
[366470865,1750275046500,-460.0,0.00022739,6]
[366470866,1750275046509,-460.0,0.00022739,6]
[366470867,1750275046519,-1528.55,0.00022739,6]
[366470868,1750275046528,-982.57,0.00022739,6]
[366470869,1750275046538,-460.0,0.00022739,6]
[366470870,1750275046547,-460.0,0.00022739,6]
[366470871,1750275046556,-460.0,0.00022739,6]
[366470873,1750275046565,-671.45,0.00022739,6]
[366470874,1750275046575,-460.0,0.00022739,6]
[366470875,1750275046585,-460.0,0.00022739,6]
[366470876,1750275046594,-460.0,0.00022739,6]
[366470878,1750275046604,-460.0,0.00022739,6]
[366470879,1750275046613,-460.0,0.00022739,6]
[366470880,1750275046623,-460.0,0.00022739,6]
[366470881,1750275046633,-460.0,0.00022739,6]
[366470882,1750275046645,-460.0,0.00022739,6]
[366470883,1750275046654,-460.0,0.00022739,6]
[366470884,1750275046664,-460.0,0.00022739,6]
[366470885,1750275046674,-507.72,0.00022739,6]
[366470886,1750275046683,-834.86,0.00022739,6]
[366470887,1750275046692,-4405.44,0.00022739,6]
[366470888,1750275046702,-522.16,0.00022739,6]
[366470889,1750275046712,-460.0,0.00022739,6]
[366470891,1750275046721,-1094.82,0.00022739,6]
[366470892,1750275046730,-460.0,0.00022739,6]
[366470893,1750275046740,-460.0,0.00022739,6]
[366470894,1750275046750,-2244.49,0.00022739,6]
[366470895,1750275046759,-460.0,0.00022739,6]
[366470896,1750275046768,-460.0,0.00022739,6]
[366470897,1750275046777,-628.28,0.00022739,6]
[366470898,1750275046787,-460.0,0.00022739,6]
[366470899,1750275046796,-460.0,0.00022739,6]
[366470900,1750275046805,-268.71,0.00022739,6]
[366470901,1750275046814,-460.0,0.00022739,6]
[366470902,1750275046823,-423.61788861,0.00022739,6]
[366470903,1750275046831,-460.0,0.00022739,6]
[366470904,1750275046841,-168.0,0.00022742,2]
[366470905,1750275046850,-723.82929386,0.0002283,2]
[366470906,1750275046860,-1399.43,0.00022843,2]
[366470907,1750275046868,-322.89050503,0.00022858,2]
[366470908,1750275046878,-501.56913861,0.00022858,2]
[366470909,1750275046889,-606.44206613,0.00022866,8]
[366470910,1750275046898,-151.0,0.00022876,6]
[366470911,1750275046908,-151.0,0.00022876,6]
[366470912,1750275046918,-151.0,0.00022876,6]
[366470913,1750275046927,-246.68180885,0.00022876,6]
[366470914,1750275046937,-151.0,0.00022876,6]
[366470915,1750275046947,-201.54572829,0.00022876,6]
[366470916,1750275046956,-159.00861265,0.00022876,6]
[366470917,1750275046965,-201.95831347,0.00022876,6]
[366470918,1750275046974,-151.0,0.00022903,6]
[366470919,1750275046984,-151.0,0.00022903,6]
[366470920,1750275046993,-151.0,0.00022903,6]
[366470921,1750275047003,-199.0,0.00022931,6]
[366470922,1750275047012,-198.0,0.00022931,6]
[366470923,1750275047026,-500.0,0.00022989,2]
[366470924,1750275047035,-168.0,0.0002299,2]
[366470925,1750275047044,-6026.69411084,0.00023,3]
[366470926,1750275047054,-606.44206613,0.00023003,8]
[366470927,1750275047063,-460.0,0.00023013,6]
[366470928,1750275047072,-460.0,0.00023013,6]
[366470929,1750275047082,-460.0,0.00023013,6]
[366470930,1750275047092,-460.0,0.00023013,6]
[366470931,1750275047101,-460.0,0.00023013,6]
[366470932,1750275047110,-460.0,0.00023013,6]
[366470933,1750275047119,-1327.91,0.00023013,6]
[366470934,1750275047128,-2059.11,0.00023013,6]
[366470935,1750275047139,-460.0,0.00023013,6]
[366470936,1750275047148,-558.23,0.00023013,6]
[366470937,1750275047157,-2489.45,0.00023013,6]
[366470938,1750275047167,-2535.43,0.00023013,6]
[366470939,1750275047177,-1287.29,0.00023013,6]
[366470940,1750275047187,-460.0,0.00023013,6]
[366470941,1750275047196,-460.0,0.00023013,6]
[366470942,1750275047205,-1697.43,0.00023013,6]
[366470943,1750275047215,-460.0,0.00023013,6]
[366470944,1750275047224,-1073.53,0.00023013,6]
[366470945,1750275047234,-894.95,0.00023013,6]
[366470946,1750275047243,-803.74,0.00023013,6]
[366470947,1750275047252,-686.29,0.00023013,6]
[366470948,1750275047261,-460.0,0.00023013,6]
[366470949,1750275047270,-460.0,0.00023013,6]
[366470950,1750275047280,-460.0,0.00023013,6]
[366470951,1750275047289,-460.0,0.00023013,6]
[366470952,1750275047298,-460.0,0.00023013,6]
[366470953,1750275047308,-460.0,0.00023013,6]
[366470954,1750275047317,-772.26,0.00023013,6]
[366470955,1750275047326,-460.0,0.00023013,6]
[366470956,1750275047336,-460.0,0.00023013,6]
[366470957,1750275047345,-281.87326068,0.00023013,6]
[366470958,1750275047355,-460.0,0.00023013,6]
[366470959,1750275047364,-1528.55,0.00023013,6]
[366470960,1750275047374,-982.57,0.00023013,6]
[366470961,1750275047383,-460.0,0.00023013,6]
[366470962,1750275047395,-460.0,0.00023013,6]
[366470963,1750275047404,-460.0,0.00023013,6]
[366470964,1750275047414,-671.45,0.00023013,6]
[366470965,1750275047424,-460.0,0.00023013,6]
[366470966,1750275047433,-460.0,0.00023013,6]
[366470967,1750275047443,-570.75529982,0.00023013,6]
[366470968,1750275047453,-460.0,0.00023013,6]
[366470969,1750275047462,-460.0,0.00023013,6]
[366470970,1750275047473,-460.0,0.00023013,6]
[366470971,1750275047482,-460.0,0.00023013,6]
[366470972,1750275047492,-460.0,0.00023013,6]
[366470973,1750275047502,-507.72,0.00023013,6]
[366470974,1750275047513,-834.86,0.00023013,6]
[366470975,1750275047522,-4405.44,0.00023013,6]
[366470976,1750275047532,-522.16,0.00023013,6]
[366470977,1750275047541,-460.0,0.00023013,6]
[366470978,1750275047552,-1094.82,0.00023013,6]
[366470979,1750275047562,-460.0,0.00023013,6]
[366470980,1750275047571,-460.0,0.00023013,6]
[366470981,1750275047580,-2244.49,0.00023013,6]
[366470982,1750275047590,-460.0,0.00023013,6]
[366470983,1750275047600,-460.0,0.00023013,6]
[366470984,1750275047609,-628.28,0.00023013,6]
[366470985,1750275047619,-460.0,0.00023013,6]
[366470986,1750275047628,-460.0,0.00023013,6]
[366470987,1750275047637,-1800.0,0.00023068,2]
[366470988,1750275047646,-1500.0,0.00023068,2]
[366470989,1750275047655,-1500.0,0.00023068,2]
[366470990,1750275047665,-430.89292246,0.00023078,2]
[366470991,1750275047674,-554.66,0.000231,7]
[366470992,1750275047684,-500.0,0.00023108,2]
[366470993,1750275047693,-606.44206613,0.00023141,8]
[366470994,1750275047703,-500.0,0.0002315,2]
[366470995,1750275047712,-168.0,0.0002316,2]
[366470996,1750275047722,-215.0738,0.00023163,2]
[366470997,1750275047731,-5000.0,0.00023173,2]
[366470998,1750275047741,-500.59896885,0.00023275,2]
[366470999,1750275047750,-1441.2,0.00023277,3]
[366471000,1750275047760,-960.8,0.00023277,3]
[366471001,1750275047770,-480.4,0.00023277,3]
[366471002,1750275047779,-606.44206613,0.00023279,8]
[366471003,1750275047789,-460.0,0.00023287,6]
[366471004,1750275047800,-460.0,0.00023287,6]
[366471005,1750275047810,-460.0,0.00023287,6]
[366471006,1750275047819,-460.0,0.00023287,6]
[366471007,1750275047828,-460.0,0.00023287,6]
[366471008,1750275047838,-1327.91,0.00023287,6]
[366471009,1750275047847,-2059.11,0.00023287,6]
[366471010,1750275047856,-380.0,0.00023287,6]
[366471011,1750275047866,-558.23,0.00023287,6]
[366471012,1750275047875,-2489.45,0.00023287,6]
[366471013,1750275047885,-2535.43,0.00023287,6]
[366471014,1750275047895,-1287.29,0.00023287,6]
[366471015,1750275047904,-460.0,0.00023287,6]
[366471016,1750275047914,-460.0,0.00023287,6]
[366471017,1750275047923,-1697.43,0.00023287,6]
[366471018,1750275047933,-460.0,0.00023287,6]
[366471019,1750275047942,-1073.53,0.00023287,6]
[366471020,1750275047952,-894.95,0.00023287,6]
[366471021,1750275047963,-803.74,0.00023287,6]
[366471022,1750275047972,-686.29,0.00023287,6]
[366471023,1750275047982,-460.0,0.00023287,6]
[366471024,1750275047992,-460.0,0.00023287,6]
[366471025,1750275048001,-460.0,0.00023287,6]
[366471026,1750275048012,-460.0,0.00023287,6]
[366471027,1750275048025,-460.0,0.00023287,6]
[366471028,1750275048035,-460.0,0.00023287,6]
[366471029,1750275048045,-772.26,0.00023287,6]
[366471030,1750275048055,-460.0,0.00023287,6]
[366471031,1750275048066,-460.0,0.00023287,6]
[366471032,1750275048075,-1528.55,0.00023287,6]
[366471033,1750275048085,-460.0,0.00023287,6]
[366471034,1750275048098,-982.57,0.00023287,6]
[366471035,1750275048108,-329.44195837,0.00023287,6]
[366471036,1750275048118,-460.0,0.00023287,6]
[366471037,1750275048128,-671.45,0.00023287,6]
[366471038,1750275048141,-460.0,0.00023287,6]
[366471039,1750275048151,-460.0,0.00023287,6]
[366471040,1750275048160,-460.0,0.00023287,6]
[366471041,1750275048169,-460.0,0.00023287,6]
[366471042,1750275048179,-460.0,0.00023287,6]
[366471043,1750275048190,-462.03,0.00023287,6]
[366471044,1750275048200,-507.72,0.00023287,6]
[366471045,1750275048210,-834.86,0.00023287,6]
[366471046,1750275048221,-4405.44,0.00023287,6]
[366471047,1750275048231,-522.16,0.00023287,6]
[366471048,1750275048242,-460.0,0.00023287,6]
[366471049,1750275048251,-1094.82,0.00023287,6]
[366471050,1750275048261,-460.0,0.00023287,6]
[366471051,1750275048270,-460.0,0.00023287,6]
[366471052,1750275048280,-2244.49,0.00023287,6]
[366471053,1750275048289,-460.0,0.00023287,6]
[366471054,1750275048298,-460.0,0.00023287,6]
[366471055,1750275048307,-628.28,0.00023287,6]
[366471056,1750275048317,-460.0,0.00023287,6]
[366471057,1750275048326,-500.0,0.00023288,2]
[366471058,1750275048335,-321001.32334315,0.00023325,2]
[366471059,1750275048344,-72389.34,0.000234,7]
[366471060,1750275048354,-1360.33028,0.00023412,3]
[366471061,1750275048363,-606.44206613,0.00023417,9]
[366471062,1750275048373,-500.0,0.000235,2]
[366471063,1750275048384,-430.89292246,0.00023519,2]
[366471064,1750275048395,-158.9908236,0.00023534,2]
[366471065,1750275048405,-153.0,0.00023534,2]
[366471066,1750275048414,-177.1504183,0.00023534,2]
[366471067,1750275048424,-574.2153043,0.00023534,2]
[366471068,1750275048434,-306.0,0.00023534,2]
[366471069,1750275048444,-155.2600871,0.00023534,2]
[366471070,1750275048453,-574.2153043,0.00023534,2]
[366471071,1750275048462,-177.1504183,0.00023534,2]
[366471072,1750275048472,-153.0,0.00023534,2]
[366471073,1750275048484,-158.9908236,0.00023534,2]
[366471074,1750275048494,-153.0,0.00023534,2]
[366471075,1750275048505,-177.1504183,0.00023534,2]
[366471076,1750275048515,-574.2153043,0.00023534,2]
[366471077,1750275048525,-158.9908236,0.00023534,2]
[366471078,1750275048535,-574.2153043,0.00023534,2]
[366471079,1750275048545,-158.9908236,0.00023534,2]
[366471080,1750275048554,-153.0,0.00023534,2]
[366471081,1750275048564,-153.0,0.00023534,2]
[366471082,1750275048573,-177.1504183,0.00023534,2]
[366471083,1750275048583,-158.9908236,0.00023534,2]
[366471084,1750275048593,-177.1504183,0.00023534,2]
[366471085,1750275048603,-574.2153043,0.00023534,2]
[366471086,1750275048612,-177.1504183,0.00023534,2]
[366471087,1750275048622,-153.0,0.00023534,2]
[366471088,1750275048631,-316.8428837,0.00023534,2]
[366471089,1750275048642,-574.2153043,0.00023534,2]
[366471090,1750275048652,-153.0,0.00023534,2]
[366471091,1750275048662,-606.44206613,0.00023555,9]
[366471092,1750275048672,-160.0,0.0002356,2]
[366471093,1750275048682,-460.0,0.00023561,6]
[366471094,1750275048692,-460.0,0.00023561,6]
[366471095,1750275048702,-460.0,0.00023561,6]
[366471096,1750275048712,-460.0,0.00023561,6]
[366471097,1750275048722,-460.0,0.00023561,6]
[366471098,1750275048732,-1327.91,0.00023561,6]
[366471099,1750275048742,-2059.11,0.00023561,6]
[366471100,1750275048751,-558.23,0.00023561,6]
[366471101,1750275048761,-2489.45,0.00023561,6]
[366471102,1750275048771,-2535.43,0.00023561,6]
[366471103,1750275048780,-1287.29,0.00023561,6]
[366471104,1750275048790,-460.0,0.00023561,6]
[366471105,1750275048799,-460.0,0.00023561,6]
[366471106,1750275048809,-1697.43,0.00023561,6]
[366471107,1750275048819,-460.0,0.00023561,6]
[366471108,1750275048829,-1073.53,0.00023561,6]
[366471109,1750275048838,-894.95,0.00023561,6]
[366471110,1750275048848,-803.74,0.00023561,6]
[366471111,1750275048858,-686.29,0.00023561,6]
[366471112,1750275048868,-460.0,0.00023561,6]
[366471113,1750275048877,-460.0,0.00023561,6]
[366471114,1750275048888,-460.0,0.00023561,6]
[366471115,1750275048898,-460.0,0.00023561,6]
[366471116,1750275048908,-460.0,0.00023561,6]
[366471117,1750275048918,-460.0,0.00023561,6]
[366471118,1750275048927,-772.26,0.00023561,6]
[366471119,1750275048936,-460.0,0.00023561,6]
[366471120,1750275048945,-460.0,0.00023561,6]
[366471121,1750275048954,-1528.55,0.00023561,6]
[366471122,1750275048964,-460.0,0.00023561,6]
[366471123,1750275048974,-982.57,0.00023561,6]
[366471124,1750275048984,-460.0,0.00023561,6]
[366471125,1750275048994,-671.45,0.00023561,6]
[366471126,1750275049005,-460.0,0.00023561,6]
[366471127,1750275049019,-460.0,0.00023561,6]
[366471128,1750275049032,-460.0,0.00023561,6]
[366471129,1750275049042,-460.0,0.00023561,6]
[366471130,1750275049052,-460.0,0.00023561,6]
[366471131,1750275049062,-507.72,0.00023561,6]
[366471132,1750275049072,-834.86,0.00023561,6]
[366471133,1750275049082,-4405.44,0.00023561,6]
[366471134,1750275049092,-522.16,0.00023561,6]
[366471135,1750275049104,-460.0,0.00023561,6]
[366471136,1750275049114,-1094.82,0.00023561,6]
[366471137,1750275049131,-460.0,0.00023561,6]
[366471138,1750275049147,-487.9,0.00023561,6]
[366471139,1750275049158,-2244.49,0.00023561,6]
[366471140,1750275049168,-460.0,0.00023561,6]
[366471141,1750275049178,-460.0,0.00023561,6]
[366471142,1750275049189,-628.28,0.00023561,6]
[366471143,1750275049199,-460.0,0.00023561,6]
[366471144,1750275049209,-500.0,0.00023608,2]
[366471145,1750275049219,-2400.0,0.00023616,2]
[366471146,1750275049228,-1265.95410642,0.00023616,2]
[366471147,1750275049239,-2000.0,0.00023616,2]
[366471148,1750275049249,-158.9908236,0.00023652,2]
[366471149,1750275049259,-356.2010292,0.00023652,2]
[366471150,1750275049269,-1148.0012912,0.00023652,2]
[366471151,1750275049279,-574.2153043,0.00023652,2]
[366471152,1750275049289,-306.0000001,0.00023668,2]
[366471153,1750275049299,-515.3103067,0.00023668,2]
[366471154,1750275049308,-420.0,0.00023686,2]
[366471155,1750275049318,-606.44206613,0.00023693,9]
[366471156,1750275049327,-1000.0,0.00023698,2]
[366471157,1750275049336,-587.0,0.00023712,2]
[366471158,1750275049346,-1632.67,0.00023721,2]
[366471159,1750275049356,-5000.0,0.00023721,2]